Workbook

Sheet RAVVEDIMENTO
A1: RAVVEDIMENTO OPEROSO
A2: a cura di Piergiorgio Ripa - dottore commercialista - www.studioripa.it
A3: (piergiorgio.ripa@studioripa.it) - nuova versione aggiornata (disponibile dal 25/09/2024)
A5: La Riforma fiscale ha modificato anche i calcoli del cd. 'Ravvedimento operoso'.
A6: Le novità relative alla riduzione dellesanzioni sono introdotte dal D.Lgs. n. 87/2024 e sono applicabili alle violazioni commesse a partire dal 1° settembre 2024.
A7: Chi non esegue, in tutto o in parte, alle prescritte scadenze, i versamenti delle imposte, è soggetto a sanzione amministrativa pari al 25% di ogni importo non versato.
A8: Il seguente file excel 'aggiorna' quello in precedenza reso disponibile.
A9: In particolare, permette il calcolo sia in relazione alle violazioni commesse fino al 31 agosto 2024, che per quelle relative al periodo successivo decorrente dal 1° settembre 2024.
A11: Seleziona Opzione sulla data di scadenza del versamento:

Sheet Ravvedimento fino 31-08-2024
A1: RAVVEDIMENTO OPEROSO - scadenze fino al 31 agosto 2024
A2: a cura di Piergiorgio Ripa - dottore commercialista - www.studioripa.it
A3: (piergiorgio.ripa@studioripa.it) - nuova versione aggiornata (disponibile dal 25/09/2024)
B5: Inserire nelle celle di colore giallo con caratteri di colore rosso, i dati di Input richiesti;
B6: Per inserire la data odierna è possibile indicare, come proposto in apertura: =OGGI()
B7: I risultati del calcolo vengono proposti in forma di dati da indicare sul Mod. F24
B8: E' gestito 'in automatico' il cd. 'ravvedimento sprint' (quello effettuato entro 14 giorni dalla violazione).
B9: In caso di indebita compensazione di credito inesistente occorre indicarlo con una X nello spazio apposito.
B10: Indicare con X qundo viene effettuato il ravvedimento: entro il termine di dichiarazione, entro la successiva, o oltre.
B12: Codice Tributo dell'Imposta non versata | H12: 6006
B14: Data scadenza (in cui doveva essere versata l'imposta) | H14: 2023-07-16
B16: Data di versamento (da ravvedimento) | H16: =TODAY() -> 2024-09-25
B18: Importo non versato | H18: 1000
B20: Indebita compensazione di credito inesistente? (in caso positivo digitare "X")
B22: Il ravvedimento viene effettuato:
C23: - entro la dichiarazione: | F23: - entro successiva dich.ne: | G23: X | H23: - oltre:
B25: Giorni di ritardo nel versamento | H25: =(H16-H14) -> 437
B27: Imposta non versata | F27: cod.tributo: | G27: =H12 -> 6006 | H27: =H18 -> 1000
B28: Interessi moratori | F28: cod.tributo: | G28: =+IF(H12=1001,H12)+IF(H12=1011,H12)+IF(H12=1020,H12)+IF(H12=1019,H12)+IF(H12=1012,H12)+IF(H12=1038,H12)+IF(H12=1040,H12)+IF(H12=3800,1993)+IF(H12=3801,1994)+IF(H12=3812,1993)+IF(H12=3813,1993)+IF(H12=4001,1989)+IF(H12=4033,1989)+IF(H12=4034,1989)+IF(H12=6001,1991)+IF(H12=6002,1991)+IF(H12=6003,1991)+IF(H12=6004,1991)+IF(H12=6005,1991)+IF(H12=6006,1991)+IF(H12=6007,1991)+IF(H12=6008,1991)+IF(H12=6009,1991)+IF(H12=6010,1991)+IF(H12=6011,1991)+IF(H12=6012,1991)+IF(H12=6013,1991)+IF(H12=6031,1991)+IF(H12=6032,1991)+IF(H12=6033,1991)+IF(H12=6034,1991)+IF(H12=6035,1991)+IF(H12=6099,1991)+IF(H12=3802,H12)+IF(H12=2001,1990)+IF(H12=2002,1990)+IF(H12=2003,1990)+IF(H12=1842,1940)+IF(H12=1840,1940)+IF(H12=1841,1940)+IF(H12=1792,1944)+IF(H12=1790,1944)+IF(H12=1791,1944)+IF(H12=1793,1944)+IF(H12=1794,1944)+IF(H12=1795,1944)+IF(H12=3843,1998)+IF(H12=3844,1998)+IF(H12=4200,1941)+IF(H12=4041,1942)+IF(H12=4044,1942)+IF(H12=4045,1942)+IF(H12=4043,1943)+IF(H12=4047,1943)+IF(H12=4048,1943) -> 1991 | H28: =J112 -> 41.57534247
B29: Sanzioni dovute | F29: cod.tributo: | G29: =+IF(H12=1001,8947)+IF(H12=1011,8947)+IF(H12=1004,8947)+IF(H12=1020,8948)+IF(H12=1019,8948)+IF(H12=1012,8947)+IF(H12=1038,8948)+IF(H12=1040,8948)+IF(H12=3800,8907)+IF(H12=3801,8902)+IF(H12=3812,8907)+IF(H12=3813,8907)+IF(H12=4001,8901)+IF(H12=4033,8901)+IF(H12=4034,8901)+IF(H12=6001,8904)+IF(H12=6002,8904)+IF(H12=6003,8904)+IF(H12=6004,8904)+IF(H12=6005,8904)+IF(H12=6006,8904)+IF(H12=6007,8904)+IF(H12=6008,8904)+IF(H12=6009,8904)+IF(H12=6010,8904)+IF(H12=6011,8904)+IF(H12=6012,8904)+IF(H12=6013,8904)+IF(H12=6031,8904)+IF(H12=6032,8904)+IF(H12=6033,8904)+IF(H12=6034,8904)+IF(H12=6035,8904)+IF(H12=6099,8904)+IF(H12=3802,8947)+IF(H12=2001,8918)+IF(H12=2002,8918)+IF(H12=2003,8918)+IF(H12=1842,8940)+IF(H12=1840,8940)+IF(H12=1841,8940)+IF(H12=1792,8944)+IF(H12=1790,8944)+IF(H12=1791,8944)+IF(H12=1793,8944)+IF(H12=1794,8944)+IF(H12=1795,8944)+IF(H12=3843,8926)+IF(H12=3844,8926)+IF(H12=4200,8941)+IF(H12=4041,8942)+IF(H12=4044,8942)+IF(H12=4045,8942)+IF(H12=4043,8943)+IF(H12=4047,8943)+IF(H12=4048,8943) -> 8904 | H29: =IF(H20="X",H18/100*10,IF(H25<=14,H18/100*0.2*H25/2,IF(H25>14,O83))) -> 42.85714286
B30: Totale versamento | H30: =SUM(H27:H29) -> 1084.432485
B32: SANZIONI DA RAVVEDIMENTO
B33: Dal | C33: Al | D33: entro 30gg. | E33: entro 90gg. | F33: entro dich. | G33: dich. succ. | H33: oltre termini prec.
B34: 1999-01-01 | C34: 2008-11-28 | D34: 0.0375 | E34: 0.06 | F34: 0.06
B35: 2008-11-29 | C35: 2011-01-31 | D35: 0.025 | E35: 0.025 | F35: 0.03
B36: 2011-02-01 | C36: 2014-12-31 | D36: =0.3/10 -> 0.03 | E36: =0.3/8 -> 0.0375 | F36: =0.3/8 -> 0.0375 | G36: =0.3/7 -> 0.04285714286 | H36: =0.3/6 -> 0.05
B37: 2015-01-01 | C37: 2015-12-31 | D37: =0.3/10 -> 0.03 | E37: =0.3/9 -> 0.03333333333 | F37: =0.3/8 -> 0.0375 | G37: =0.3/7 -> 0.04285714286 | H37: =0.3/6 -> 0.05
B38: 2016-01-01 | C38: 2024-08-31 | D38: =0.3/10/2 -> 0.015 | E38: =0.3/9/2 -> 0.01666666667 | F38: =0.3/8 -> 0.0375 | G38: =0.3/7 -> 0.04285714286 | H38: =0.3/6 -> 0.05
B40: INTERESSI LEGALI:
B41: Dal | C41: Al | D41: %
B42: 1999-01-01 | C42: 2000-12-31 | D42: 0.025 | N42: =(IF(B78<$H$14<C78,0,1)) -> 1
B43: 2001-01-01 | C43: =B44-1 -> 2001-12-31 | D43: 0.035 | N43: 1
B44: 2002-01-01 | C44: 2003-12-31 | D44: 0.03 | N44: 1
B45: 2004-01-01 | C45: 2007-12-31 | D45: 0.025 | N45: 1
B46: 2008-01-01 | C46: 2009-12-31 | D46: 0.03 | N46: 1
B47: 2010-01-01 | C47: 2010-12-31 | D47: 0.01 | N47: 1
B48: 2011-01-01 | C48: 2011-12-31 | D48: 0.015 | N48: 1
B49: 2012-01-01 | C49: 2013-12-31 | D49: 0.025 | N49: 1
B50: 2014-01-01 | C50: 2014-12-31 | D50: 0.01 | N50: 1
B51: 2015-01-01 | C51: 2015-12-31 | D51: 0.005 | N51: 1
B52: 2016-01-01 | C52: 2016-12-31 | D52: 0.002
B53: 2017-01-01 | C53: 2017-12-31 | D53: 0.001 | N53: =(IF(B88<$H$14<C88,0,1)) -> 1
B54: 2018-01-01 | C54: 2018-12-31 | D54: 0.003 | N54: =(IF(B89<$H$14<C89,0,1)) -> 1
B55: 2019-01-01 | C55: 2019-12-31 | D55: 0.008
B56: 2020-01-01 | C56: 2020-12-31 | D56: 0.0005 | N56: =(IF(B91<$H$14<C91,0,1)) -> 1
B57: 2021-01-01 | C57: 2021-12-31 | D57: 0.0001 | N57: =(IF(B92<$H$14<C92,0,1)) -> 1
B58: 2022-01-01 | C58: 2022-12-31 | D58: 0.0125 | N58: =(IF(B92<$H$14<C92,0,1)) -> 1
B59: 2023-01-01 | C59: 2023-12-31 | D59: 0.05
B60: 2024-01-01 | C60: 2025-12-31 | D60: 0.025 | N60: =(IF(B93<$H$14<C93,0,1)) -> 1
N61: =(IF(B94<$H$14<C94,0,1)) -> 1
N62: 1
B63: 1989 | C63: interessi IRPEF | N63: 1
B64: 1990 | C64: interessi IRES | N64: 1
B65: 1991 | C65: interessi IVA | N65: 1
B66: 1992 | C66: interessi imposte sostitutive | N66: 1
B67: 1993 | C67: interessi IRAP | N67: 1
B68: 1994 | C68: interessi addiz.reg | N68: 1
B69: 1995 | C69: interessi addiz. Com. | N69: 1
N70: =(IF(B104<$H$14<C104,0,1)) -> 1
N71: =(IF(B112<$H$14<C112,0,1)) -> 1
B72: dal | C72: al | F72: importo iniziale
B73: =H14 -> 2023-07-16 | C73: =H16 -> 2024-09-25 | F73: =H18 -> 1000
B75: dal | C75: al | D75: =D33 -> entro 30gg. | E75: =E33 -> entro 90gg. | F75: =F33 -> entro dich. | G75: =G33 -> dich. succ. | I75: =H33 -> oltre termini prec. | L75: inizio | M75: fine | N75: si/no | O75: entro 30gg. | P75: entro 90gg. | Q75: =F75 -> entro dich. | R75: =G75 -> dich. succ. | S75: =I75 -> oltre termini prec.
B76: 1999-01-01 | C76: 2008-11-28 | D76: 0.0375 | E76: 0.06 | F76: 0.06 | L76: =IF($B$73<=C76,IF($B$73<B76,B76,$B$73),0) -> 00:00:00 | M76: =IF($C$73>=B76,IF($C$73>C76,C76,$C$73),0) -> 2008-11-28 | N76: =IF(AND(B76<$H$14,$H$14<=C76),1,0) -> 0 | O76: =$F$73*D76*$N$76 -> 0 | P76: =$F$73*E76*$N$76 -> 0 | Q76: =$F$73*F76*$N$76 -> 0 | R76: =$F$73*G76*$N$76 -> 0 | S76: =$F$73*I76*$N$76 -> 0
B77: 2008-11-29 | C77: 2011-01-31 | D77: 0.025 | E77: 0.03 | F77: 0.03 | L77: =IF($B$73<=C77,IF($B$73<B77,B77,$B$73),0) -> 00:00:00 | M77: =IF($C$73>=B77,IF($C$73>C77,C77,$C$73),0) -> 2011-01-31 | N77: =IF(AND(B77<=$H$14,$H$14<=C77),1,0) -> 0 | O77: =$F$73*D77*$N$77 -> 0 | P77: =$F$73*E77*$N$77 -> 0 | Q77: =$F$73*F77*$N$77 -> 0 | R77: =$F$73*G77*$N$77 -> 0 | S77: =$F$73*I77*$N$77 -> 0
B78: 2011-02-01 | C78: 2014-12-31 | D78: 0.03 | E78: 0.0375 | F78: 0.0375 | G78: =G36 -> 0.04285714286 | I78: =H36 -> 0.05 | L78: =IF($B$73<=C78,IF($B$73<B78,B78,$B$73),0) -> 00:00:00 | M78: =IF($C$73>=B78,IF($C$73>C78,C78,$C$73),0) -> 2014-12-31 | N78: =IF(AND(B78<=$H$14,$H$14<=C78),1,0) -> 0 | O78: =$F$73*D78*$N$78 -> 0 | P78: =$F$73*E78*$N$78 -> 0 | Q78: =$F$73*F78*$N$78 -> 0 | R78: =$F$73*G78*$N$78 -> 0 | S78: =$F$73*I78*$N$78 -> 0
B79: 2015-01-01 | C79: 2015-12-31 | D79: 0.03 | E79: =E37 -> 0.03333333333 | F79: 0.0375 | G79: =G37 -> 0.04285714286 | I79: =H37 -> 0.05 | L79: =IF($B$73<=C79,IF($B$73<B79,B79,$B$73),0) -> 00:00:00 | M79: =IF($C$73>=B79,IF($C$73>C79,C79,$C$73),0) -> 2015-12-31 | N79: =IF(AND(B79<=$H$14,$H$14<=C79),1,0) -> 0 | O79: =$F$73*D79*$N$79 -> 0 | P79: =$F$73*E79*$N$79 -> 0 | Q79: =$F$73*F79*$N$79 -> 0 | R79: =$F$73*G79*$N$79 -> 0 | S79: =$F$73*I79*$N$79 -> 0
B80: 2016-01-01 | C80: 2024-12-31 | D80: =3%/2 -> 0.015 | E80: =E38 -> 0.01666666667 | F80: 0.0375 | G80: =G38 -> 0.04285714286 | I80: =H38 -> 0.05 | L80: =IF($B$73<=C80,IF($B$73<B80,B80,$B$73),0) -> 2023-07-16 | M80: =IF($C$73>=B80,IF($C$73>C80,C80,$C$73),0) -> 2024-09-25 | N80: =IF(AND(B80<=$H$14,$H$14<=C80),1,0) -> 1 | O80: =$F$73*D80*$N$80 -> 15 | P80: =$F$73*E80*$N$80 -> 16.66666667 | Q80: =$F$73*F80*$N$80 -> 37.5 | R80: =$F$73*G80*$N$80 -> 42.85714286 | S80: =$F$73*I80*$N$80 -> 50
M82: totale | N82: =SUM(N76:N80) -> 1 | O82: 15 | P82: 16.66666667 | Q82: 37.5 | R82: 42.85714286 | S82: 50
O83: =IF($H$25<31,O82,P83) -> 42.85714286 | P83: =IF($H$25<90,P82,Q83) -> 42.85714286 | Q83: =IF(AND($H$25>90,$D$23="X"),Q82,R83) -> 42.85714286 | R83: =IF(AND($H$25>90,$G$23="X"),R82,S83) -> 42.85714286 | S83: =IF(AND($H$25>90,$I$23="X"),S82,T83) -> 0
B84: dal | C84: al | F84: importo iniziale
B85: =H14 -> 2023-07-16 | C85: =H16 -> 2024-09-25 | F85: =H18 -> 1000
F86: importo aggiornato
C87: Euro | F87: =F85+J112 -> 1041.575342
B88: dal | C88: al | D88: giorni/anno | F88: Interesse legale | G88: inizio | H88: fine | I88: giorni | J88: interessi
B89: 1999-01-01 | C89: 1999-12-31 | D89: 365 | F89: 0.025 | G89: =IF($B$85<=C89,IF($B$85<B89,B89,$B$85),0) -> 00:00:00 | H89: =IF($C$85>=B89,IF($C$85>C89,C89,$C$85),0) -> 1999-12-31 | I89: =IF(AND(H89>0,G89>0),(H89-G89)+1,0) -> 0 | J89: =$F$85*F89*(I89/365) -> 0
B90: 2000-01-01 | C90: 2000-12-31 | D90: 366 | F90: 0.025 | G90: =IF($B$85<=C90,IF($B$85<B90,B90,$B$85),0) -> 00:00:00 | H90: =IF($C$85>=B90,IF($C$85>C90,C90,$C$85),0) -> 2000-12-31 | I90: =IF(AND(H90>0,G90>0),(H90-G90)+1,0) -> 0 | J90: =$F$85*F90*(I90/366) -> 0
B91: 2001-01-01 | C91: =B92-1 -> 2001-12-31 | D91: 365 | F91: 0.035 | G91: =IF($B$85<=C91,IF($B$85<B91,B91,$B$85),0) -> 00:00:00 | H91: =IF($C$85>=B91,IF($C$85>C91,C91,$C$85),0) -> 2001-12-31 | I91: 0 | J91: =$F$85*F91*(I91/365) -> 0
B92: 2002-01-01 | C92: =B93-1 -> 2003-12-31 | D92: 365 | F92: 0.03 | G92: 00:00:00 | H92: 2003-12-31 | I92: 0 | J92: =$F$85*F92*(I92/365) -> 0
B93: 2004-01-01 | C93: 2004-12-31 | D93: 366 | F93: 0.025 | G93: 00:00:00 | H93: 2004-12-31 | I93: 0 | J93: =$F$85*F93*(I93/366) -> 0
B94: 2005-01-01 | C94: 2007-12-31 | D94: 365 | F94: 0.025 | G94: =IF($B$85<=C94,IF($B$85<B94,B94,$B$85),0) -> 00:00:00 | H94: =IF($C$85>=B94,IF($C$85>C94,C94,$C$85),0) -> 2007-12-31 | I94: 0 | J94: =$F$85*F94*(I94/365) -> 0
B95: 2008-01-01 | C95: 2008-12-31 | D95: 366 | F95: 0.03 | G95: 00:00:00 | H95: 2008-12-31 | I95: 0 | J95: =$F$85*F95*(I95/366) -> 0
B96: 2009-01-01 | C96: 2009-12-31 | D96: 365 | F96: 0.03 | G96: =IF($B$85<=C96,IF($B$85<B96,B96,$B$85),0) -> 00:00:00 | H96: =IF($C$85>=B96,IF($C$85>C96,C96,$C$85),0) -> 2009-12-31 | I96: 0 | J96: =$F$85*F96*(I96/365) -> 0
B97: 2010-01-01 | C97: 2010-12-31 | D97: 365 | F97: 0.01 | G97: 00:00:00 | H97: 2010-12-31 | I97: 0 | J97: =$F$85*F97*(I97/365) -> 0
B98: 2011-01-01 | C98: 2011-12-31 | D98: 365 | F98: 0.015 | G98: =IF($B$85<=C98,IF($B$85<B98,B98,$B$85),0) -> 00:00:00 | H98: =IF($C$85>=B98,IF($C$85>C98,C98,$C$85),0) -> 2011-12-31 | I98: 0 | J98: =$F$85*F98*(I98/365) -> 0
B99: 2012-01-01 | C99: 2012-12-31 | D99: 366 | F99: 0.025 | G99: 00:00:00 | H99: 2012-12-31 | I99: 0 | J99: =$F$85*F99*(I99/366) -> 0
B100: 2013-01-01 | C100: 2013-12-31 | D100: 365 | F100: 0.025 | G100: 00:00:00 | H100: 2013-12-31 | I100: 0 | J100: =$F$85*F100*(I100/365) -> 0
B101: 2014-01-01 | C101: 2014-12-31 | D101: 365 | F101: 0.01 | G101: 00:00:00 | H101: 2014-12-31 | I101: 0 | J101: =$F$85*F101*(I101/365) -> 0
B102: 2015-01-01 | C102: 2015-12-31 | D102: 365 | F102: 0.005 | G102: 00:00:00 | H102: 2015-12-31 | I102: 0 | J102: =$F$85*F102*(I102/365) -> 0
B103: 2016-01-01 | C103: 2016-12-31 | D103: 366 | F103: 0.002 | G103: 00:00:00 | H103: =IF($C$85>=B103,IF($C$85>C103,C103,$C$85),0) -> 2016-12-31 | I103: 0 | J103: =$F$85*F103*(I103/366) -> 0
B104: 2017-01-01 | C104: 2017-12-31 | D104: 365 | F104: 0.001 | G104: 00:00:00 | H104: 2017-12-31 | I104: 0 | J104: =$F$85*F104*(I104/365) -> 0
B105: 2018-01-01 | C105: 2018-12-31 | D105: 365 | F105: 0.003 | G105: 00:00:00 | H105: =IF($C$85>=B105,IF($C$85>C105,C105,$C$85),0) -> 2018-12-31 | I105: 0 | J105: 0
B106: 2019-01-01 | C106: 2019-12-31 | D106: 365 | F106: 0.008 | G106: =IF($B$85<=C106,IF($B$85<B106,B106,$B$85),0) -> 00:00:00 | H106: 2019-12-31 | I106: 0 | J106: 0
B107: 2020-01-01 | C107: 2020-12-31 | D107: 366 | F107: 0.0005 | G107: 00:00:00 | H107: 2020-12-31 | I107: 0 | J107: 0
B108: 2021-01-01 | C108: 2021-12-31 | D108: 365 | F108: 0.0001 | G108: 00:00:00 | H108: 2021-12-31 | I108: =IF(AND(H108>0,G108>0),(H108-G108)+1,0) -> 0 | J108: 0
B109: 2022-01-01 | C109: 2022-12-31 | D109: 365 | F109: 0.0125 | G109: 00:00:00 | H109: 2022-12-31 | I109: =IF(AND(H109>0,G109>0),(H109-G109)+1,0) -> 0 | J109: =$F$85*F109*(I109/365) -> 0
B110: 2023-01-01 | C110: 2023-12-31 | D110: 365 | F110: 0.05 | G110: 2023-07-16 | H110: =IF($C$85>=B110,IF($C$85>C110,C110,$C$85),0) -> 2023-12-31 | I110: =IF(AND(H110>0,G110>0),(H110-G110)+1,0) -> 169 | J110: =$F$85*F110*(I110/365) -> 23.15068493
B111: 2024-01-01 | C111: 2024-12-31 | D111: 366 | F111: 0.025 | G111: 2024-01-01 | H111: 2024-09-25 | I111: =IF(AND(H111>0,G111>0),(H111-G111)+1,0) -> 269 | J111: 18.42465753
H112: totale | I112: =SUM(I89:I111) -> 438 | J112: =SUM(J89:J111) -> 41.57534247

Sheet Ravvedimento dal 01-09-2024
A1: RAVVEDIMENTO OPEROSO - scadenze dal 1° Settembre 2024
A2: a cura di Piergiorgio Ripa - dottore commercialista - www.studioripa.it
A3: (piergiorgio.ripa@studioripa.it) - nuova versione aggiornata (disponibile dal 25/09/2024)
B5: Inserire nelle celle di colore giallo con caratteri di colore rosso, i dati di Input richiesti;
B6: Per inserire la data odierna è possibile indicare, come proposto in apertura: =OGGI()
B7: I risultati del calcolo vengono proposti in forma di dati da indicare sul Mod. F24
B8: E' gestito 'in automatico' il cd. 'ravvedimento sprint' (quello effettuato entro 14 giorni dalla violazione).
B9: In caso di indebita compensazione di credito inesistente occorre indicarlo con una X nello spazio apposito.
B10: Indicare con X qundo viene effettuato il ravvedimento: entro il termine di dichiarazione, entro la successiva, o oltre.
B12: Codice Tributo dell'Imposta non versata | H12: 6008
B14: Data scadenza (in cui doveva essere versata l'imposta) | H14: 2024-09-16
B16: Data di versamento (da ravvedimento) | H16: =TODAY() -> 2024-09-25
B18: Importo non versato | H18: 1000
B20: Indebita compensazione di credito inesistente? (in caso positivo digitare "X")
B22: Il ravvedimento viene effettuato:
D23: - entro termine dichiarazione anno in corso: | E23: X | H23: - oltre termine dichiarazione anno in corso:
B25: Giorni di ritardo nel versamento | H25: =(H16-H14) -> 9
B27: Imposta non versata | F27: cod.tributo: | G27: =H12 -> 6008 | H27: =H18 -> 1000
B28: Interessi moratori | F28: cod.tributo: | G28: =+IF(H12=1001,H12)+IF(H12=1011,H12)+IF(H12=1020,H12)+IF(H12=1019,H12)+IF(H12=1012,H12)+IF(H12=1038,H12)+IF(H12=1040,H12)+IF(H12=3800,1993)+IF(H12=3801,1994)+IF(H12=3812,1993)+IF(H12=3813,1993)+IF(H12=4001,1989)+IF(H12=4033,1989)+IF(H12=4034,1989)+IF(H12=6001,1991)+IF(H12=6002,1991)+IF(H12=6003,1991)+IF(H12=6004,1991)+IF(H12=6005,1991)+IF(H12=6006,1991)+IF(H12=6007,1991)+IF(H12=6008,1991)+IF(H12=6009,1991)+IF(H12=6010,1991)+IF(H12=6011,1991)+IF(H12=6012,1991)+IF(H12=6013,1991)+IF(H12=6031,1991)+IF(H12=6032,1991)+IF(H12=6033,1991)+IF(H12=6034,1991)+IF(H12=6035,1991)+IF(H12=6099,1991)+IF(H12=3802,H12)+IF(H12=2001,1990)+IF(H12=2002,1990)+IF(H12=2003,1990)+IF(H12=1842,1940)+IF(H12=1840,1940)+IF(H12=1841,1940)+IF(H12=1792,1944)+IF(H12=1790,1944)+IF(H12=1791,1944)+IF(H12=1793,1944)+IF(H12=1794,1944)+IF(H12=1795,1944)+IF(H12=3843,1998)+IF(H12=3844,1998)+IF(H12=4200,1941)+IF(H12=4041,1942)+IF(H12=4044,1942)+IF(H12=4045,1942)+IF(H12=4043,1943)+IF(H12=4047,1943)+IF(H12=4048,1943) -> 1991 | H28: =J64 -> 0.6164383562
B29: Sanzioni dovute | F29: cod.tributo: | G29: =+IF(H12=1001,8947)+IF(H12=1011,8947)+IF(H12=1004,8947)+IF(H12=1020,8948)+IF(H12=1019,8948)+IF(H12=1012,8947)+IF(H12=1038,8948)+IF(H12=1040,8948)+IF(H12=3800,8907)+IF(H12=3801,8902)+IF(H12=3812,8907)+IF(H12=3813,8907)+IF(H12=4001,8901)+IF(H12=4033,8901)+IF(H12=4034,8901)+IF(H12=6001,8904)+IF(H12=6002,8904)+IF(H12=6003,8904)+IF(H12=6004,8904)+IF(H12=6005,8904)+IF(H12=6006,8904)+IF(H12=6007,8904)+IF(H12=6008,8904)+IF(H12=6009,8904)+IF(H12=6010,8904)+IF(H12=6011,8904)+IF(H12=6012,8904)+IF(H12=6013,8904)+IF(H12=6031,8904)+IF(H12=6032,8904)+IF(H12=6033,8904)+IF(H12=6034,8904)+IF(H12=6035,8904)+IF(H12=6099,8904)+IF(H12=3802,8947)+IF(H12=2001,8918)+IF(H12=2002,8918)+IF(H12=2003,8918)+IF(H12=1842,8940)+IF(H12=1840,8940)+IF(H12=1841,8940)+IF(H12=1792,8944)+IF(H12=1790,8944)+IF(H12=1791,8944)+IF(H12=1793,8944)+IF(H12=1794,8944)+IF(H12=1795,8944)+IF(H12=3843,8926)+IF(H12=3844,8926)+IF(H12=4200,8941)+IF(H12=4041,8942)+IF(H12=4044,8942)+IF(H12=4045,8942)+IF(H12=4043,8943)+IF(H12=4047,8943)+IF(H12=4048,8943) -> 8904 | H29: =IF(H20="X",H18/100*7,IF(H25<=14,H18/100*0.08*H25,IF(H25>14,O57))) -> 7.2
B30: Totale versamento | H30: =SUM(H27:H29) -> 1007.816438
B32: SANZIONI DA RAVVEDIMENTO
B33: Dal | C33: Al | D33: entro 30gg. | E33: entro 90gg. | F33: entro dich. | G33: dich. succ.
B34: 2024-09-01 | C34: 2025-12-31 | D34: =0.25/10/2 -> 0.0125 | E34: =0.25/9/2 -> 0.01388888889 | F34: =0.25/8 -> 0.03125 | G34: =0.25/7 -> 0.03571428571
B36: INTERESSI LEGALI:
B37: Dal | C37: Al | D37: %
B38: 2024-09-01 | C38: 2025-12-31 | D38: 0.025
B41: 1989 | C41: interessi IRPEF
B42: 1990 | C42: interessi IRES
B43: 1991 | C43: interessi IVA
B44: 1992 | C44: interessi imposte sostitutive
B45: 1993 | C45: interessi IRAP
B46: 1994 | C46: interessi addiz.reg
B47: 1995 | C47: interessi addiz. Com.
B50: dal | C50: al | F50: importo iniziale
B51: =H14 -> 2024-09-16 | C51: =H16 -> 2024-09-25 | F51: =H18 -> 1000
B53: dal | C53: al | D53: =D33 -> entro 30gg. | E53: =E33 -> entro 90gg. | F53: =F33 -> entro dich. | G53: =G33 -> dich. succ. | I53: =H33 -> 0 | L53: inizio | M53: fine | N53: si/no | O53: entro 30gg. | P53: entro 90gg. | Q53: =F53 -> entro dich. | R53: =G53 -> dich. succ.
B54: 2014-09-01 | C54: 2024-12-31 | D54: =2.5%/2 -> 0.0125 | E54: =E34 -> 0.01388888889 | F54: =F34 -> 0.03125 | G54: =G34 -> 0.03571428571 | I54: =H34 -> 0 | L54: =IF($B$51<=C54,IF($B$51<B54,B54,$B$51),0) -> 2024-09-16 | M54: =IF($C$51>=B54,IF($C$51>C54,C54,$C$51),0) -> 2024-09-25 | N54: =IF(AND(B54<=$H$14,$H$14<=C54),1,0) -> 1 | O54: =$F$51*D54*$N$54 -> 12.5 | P54: =$F$51*E54*$N$54 -> 13.88888889 | Q54: =$F$51*F54*$N$54 -> 31.25 | R54: =$F$51*G54*$N$54 -> 35.71428571
M56: totale | N56: =SUM(N54:N54) -> 1 | O56: =SUM(O54:O54) -> 12.5 | P56: =SUM(P54:P54) -> 13.88888889 | Q56: =SUM(Q54:Q54) -> 31.25 | R56: =SUM(R54:R54) -> 35.71428571
O57: =IF($H$25<31,O56,P57) -> 12.5 | P57: =IF($H$25<90,P56,Q57) -> 13.88888889 | Q57: =IF(AND($H$25>90,$E$23="X"),Q56,R57) -> 0 | R57: =IF(AND($H$25>90,$I$23="X"),R56,S57) -> 0
B58: dal | C58: al | F58: importo iniziale
B59: =H14 -> 2024-09-16 | C59: =H16 -> 2024-09-25 | F59: =H18 -> 1000
F60: importo aggiornato
C61: Euro | F61: =F59+J64 -> 1000.616438
B62: dal | C62: al | D62: giorni/anno | F62: Interesse legale | G62: inizio | H62: fine | I62: giorni | J62: interessi
B63: 2024-09-01 | C63: 2025-12-31 | D63: 366 | F63: 0.025 | G63: =IF($B$59<=C63,IF($B$59<B63,B63,$B$59),0) -> 2024-09-16 | H63: =IF($C$59>=B63,IF($C$59>C63,C63,$C$59),0) -> 2024-09-25 | I63: =IF(AND(H63>0,G63>0),(H63-G63),0) -> 9 | J63: =$F$59*F63*(I63/365) -> 0.6164383562
H64: totale | I64: =SUM(I63:I63) -> 9 | J64: =SUM(J63:J63) -> 0.6164383562
